Workbook

Sheet Inicio
O1: 6
D2: Indicadores Sistema Eléctrico CCAA | I2: www.ree.es
I3: Fecha de actualización: | K3: 2024-06-07

Sheet Cuadro mando
A3: Principales Indicadores Aragón 2023
B7: RED DE TRANSPORTE1
I45: (1) km líneas de la Red de Transporte

Sheet Red_de_transporte
A3: Red de transporte Aragón 2023
B7: RED DE TRANSPORTE1 | H7: VARIACIONES DE LA RdT
B11: AÑO 2023 | D11: =datos_RdT!D72 -> Aragón | E11: España | F11: % del total
B12: km circuitos 400 kV | D12: =datos_RdT!D73 -> 1448.037699 | E12: =datos_RdT!V73 -> 22057.118 | F12: =D12*100/E12 -> 6.564945153
B13: km circuitos 220 kV | D13: =datos_RdT!D74 -> 1904.367817 | E13: =datos_RdT!V74 -> 20192.427 | F13: =D13*100/E13 -> 9.431099179
B14: km circuitos <220 kV | D14: =datos_RdT!D75 -> 0 | E14: =datos_RdT!V75 -> 2973.027 | F14: 0
B15: km circuitos | D15: =datos_RdT!D76 -> 3352.405516 | E15: =datos_RdT!V76 -> 45222.572 | F15: 7.413124393
B16: Posiciones 400 kV | D16: =datos_RdT!D78 -> 133 | E16: =datos_RdT!V78 -> 1701 | F16: =D16*100/E16 -> 7.818930041
B17: Posiciones 220 kV | D17: =datos_RdT!D79 -> 232 | E17: =datos_RdT!V79 -> 3587 | F17: =D17*100/E17 -> 6.46780039
B18: Posiciones <220 kV | D18: =datos_RdT!D80 -> 0 | E18: =datos_RdT!V80 -> 1192 | F18: 0
B19: Posiciones | D19: =datos_RdT!D81 -> 365 | E19: =datos_RdT!V81 -> 6480 | F19: 5.632716049
B20: Transformadores2 (MVA) | D20: =datos_RdT!D83 -> 5056 | E20: =datos_RdT!V83 -> 91935 | F20: 5.499537717
B22: (1) Incluye los activos de la red de transporte del resto de empresas.
B23: (2) No contempla desfasadores
B26: EVOLUCIÓN DE LA RdT | H26: % km LÍNEAS C.A. vs. KILÓMETROS TOTALES

Sheet AVISO LEGAL

Sheet datos_RdT (hidden)
B1: 2018
B2: CCAA | C2: Andalucía | D2: Aragón | E2: Asturias | F2: Baleares | G2: C. Valenciana | H2: Canarias | I2: Cantabria | J2: Castilla-La Mancha | K2: Castilla y León | L2: Cataluña | M2: Ceuta | N2: Extremadura | O2: Galicia | P2: La Rioja | Q2: Madrid | R2: Melilla | S2: Murcia | T2: Navarra | U2: País Vasco | V2: TOTAL | W2: MÓVILES | X2: PENINSULAR | Y2: NO PENINSULAR
B3: km líneas 400 kV | C3: 2774.14959 | D3: 1447.051699 | E3: 529.5022043 | G3: 1073.171488 | I3: 240.5107043 | J3: 2612.814496 | K3: 4501.848432 | L3: 2237.079333 | N3: 2285.508447 | O3: 1345.968287 | P3: 114.9490595 | Q3: 992.6117087 | S3: 708.1121371 | T3: 175.9700702 | U3: 697.3623434 | V3: =SUM(C3:U3) -> 21736.61 | X3: =V3-Y3 -> 21736.61 | Y3: =F3+H3 -> 0
B4: km líneas 220 kV | C4: 3209.687495 | D4: 1858.520817 | E4: 431.5110202 | F4: 432.214 | G4: 1333.51526 | H4: 239.145 | I4: 324.1211061 | J4: 1524.543979 | K4: 3287.754074 | L4: 2533.963294 | N4: 854.5408674 | O4: 1325.176 | P4: 142.308 | Q4: 1186.787385 | S4: 123.86974 | T4: 318.8290202 | U4: 661.8999412 | V4: =SUM(C4:U4) -> 19788.387 | X4: =V4-Y4 -> 19117.028 | Y4: =F4+H4 -> 671.359
B5: km líneas <220 kV | F5: 1421.728 | H5: 1242.691 | L5: 39.44 | N5: 23 | O5: 12.3 | V5: 2739.159 | X5: 74.74 | Y5: 2664.419
B6: Total km líneas | C6: 5983.837084 | D6: 3305.572516 | E6: 961.0132245 | F6: 1853.942 | G6: 2406.686748 | H6: 1481.836 | I6: 564.6318104 | J6: 4137.358476 | K6: 7789.602506 | L6: 4810.482627 | M6: 0 | N6: 3163.049314 | O6: 2683.444287 | P6: 257.2570595 | Q6: 2179.399094 | R6: 0 | S6: 831.9818771 | T6: 494.7990904 | U6: 1359.262285 | V6: =SUM(V3:V5) -> 44264.156 | X6: =SUM(X3:X5) -> 40928.378 | Y6: 3335.778
B7: =CONCATENATE("Δ" & $B$1 & "/" & $B$1-1) -> Δ2018/2017 | C7: 0.2557731119 | D7: 0 | E7: 0 | F7: 2.471950604 | G7: 1.115227228 | H7: 9.352762201 | I7: 0 | J7: 0 | K7: 0.3927632324 | L7: 0.1035895371 | N7: 0 | O7: 2.220446049e-14 | P7: 0 | Q7: 0 | S7: 0 | T7: 0 | U7: 0 | V7: 0.3267133699 | X7: 0.3294054809 | Y7: 0.2919713582
B8: Posiciones 400 kV | C8: 197 | D8: 100 | E8: 49 | G8: 171 | I8: 15 | J8: 114 | K8: 242 | L8: 149 | N8: 104 | O8: 74 | P8: 8 | Q8: 104 | S8: 69 | T8: 28 | U8: 80 | V8: =SUM(C8:U8)+W8 -> 1504 | X8: =V8-Y8 -> 1504 | Y8: =F8+H8 -> 0
B9: Posiciones 220 kV | C9: 449 | D9: 216 | E9: 45 | F9: 116 | G9: 310 | H9: 69 | I9: 50 | J9: 138 | K9: 248 | L9: 612 | N9: 88 | O9: 222 | P9: 30 | Q9: 526 | S9: 48 | T9: 50 | U9: 151 | V9: =SUM(C9:U9)+W9 -> 3375 | W9: 7 | X9: =V9-Y9 -> 3190 | Y9: =F9+H9 -> 185 | AB9: =3005+101 -> 3106
B10: Posiciones <220 kV | F10: 541 | H10: 496 | L10: 3 | N10: 0 | O10: 1 | V10: =SUM(C10:U10)+W10 -> 1041 | X10: =V10-Y10 -> 4 | Y10: =F10+H10 -> 1037 | AB10: =904+7 -> 911
B11: Total posiciones | C11: 646 | D11: 316 | E11: 94 | F11: 657 | G11: 481 | H11: 564 | I11: 65 | J11: 251 | K11: 490 | L11: 764 | M11: 0 | N11: 192 | O11: 294 | P11: 38 | Q11: 630 | R11: 0 | S11: 117 | T11: 78 | U11: 231 | V11: =SUM(V8:V10) -> 5920 | W11: 7 | X11: =SUM(X8:X10) -> 4698 | Y11: 1222 | AB11: =521+7 -> 528
B12: =CONCATENATE("Δ" & $B$1 & "/" & $B$1-1) -> Δ2018/2017 | C12: 2.05371248 | D12: 0.6369426752 | E12: 1.075268817 | F12: 0.1524390244 | G12: 0 | H12: 13.93939394 | I12: 0 | J12: 0.4 | K12: 2.941176471 | L12: 2.826379542 | N12: 0.5235602094 | O12: 0 | P12: 0 | Q12: 0 | S12: 0 | T12: 0 | U12: 0.4347826087 | V12: 1.810829817 | W12: 0 | X12: 1.02329632 | Y12: 5.114155251
B13: Transformadores | C13: 14420 | D13: 5056 | E13: 1300 | F13: 3463 | G13: 8950 | H13: 3310 | I13: 2100 | J13: 1200 | K13: 6131 | L13: 11500 | N13: 2800 | O13: 5700 | P13: 600 | Q13: 12370 | S13: 3450 | T13: 1600 | U13: 5000 | V13: =SUM(C13:U13)+W13 -> 89850 | W13: 900 | X13: =V13-Y13 -> 83077 | Y13: =F13+H13 -> 6773
B14: =CONCATENATE("Δ" & $B$1 & "/" & $B$1-1) -> Δ2018/2017 | C14: 0 | D14: 10.53782247 | E14: 0 | F14: 0 | G14: 0 | H14: 17.79359431 | I14: 0 | J14: 0 | K14: 0 | L14: 17.34693878 | N14: 0 | O14: 0 | P14: 0 | Q14: 0 | S14: 0 | T14: 0 | U14: 4.166666667 | V14: 0.64808814 | W14: 0 | X14: 0 | Y14: 9.802205496
B15: 2019
B16: CCAA | C16: Andalucía | D16: Aragón | E16: Asturias | F16: Baleares | G16: C. Valenciana | H16: Canarias | I16: Cantabria | J16: Castilla-La Mancha | K16: Castilla y León | L16: Cataluña | M16: Ceuta | N16: Extremadura | O16: Galicia | P16: La Rioja | Q16: Madrid | R16: Melilla | S16: Murcia | T16: Navarra | U16: País Vasco | V16: TOTAL | W16: MÓVILES | X16: PENINSULAR | Y16: NO PENINSULAR
B17: km líneas 400 kV | C17: 2774.14959 | D17: 1447.051699 | E17: 529.5022043 | G17: 1073.171488 | I17: 240.5107043 | J17: 2612.814496 | K17: 4511.660432 | L17: 2237.079333 | N17: 2285.508447 | O17: 1345.968287 | P17: 114.9490595 | Q17: 992.6117087 | S17: 708.1121371 | T17: 175.9700702 | U17: 698.9563434 | V17: =SUM(C17:U17) -> 21748.016 | X17: =V17-Y17 -> 21748.016 | Y17: =F17+H17 -> 0
B18: km líneas 220 kV | C18: 3258.393495 | D18: 1876.547817 | E18: 431.5110202 | F18: 447.664 | G18: 1334.47326 | H18: 239.145 | I18: 324.1211061 | J18: 1524.543979 | K18: 3317.344074 | L18: 2534.918294 | N18: 854.9298674 | O18: 1328.496 | P18: 142.308 | Q18: 1186.937385 | S18: 123.86974 | T18: 318.8290202 | U18: 661.8999412 | V18: =SUM(C18:U18) -> 19905.932 | X18: =V18-Y18 -> 19219.123 | Y18: =F18+H18 -> 686.809
B19: km líneas <220 kV | F19: 1425.657 | H19: 1310.047 | L19: 39.44 | N19: 5.04 | O19: 12.3 | V19: =SUM(C19:U19) -> 2792.484 | X19: 56.78 | Y19: 2735.704
B20: Total km líneas | C20: =SUM(C17:C19) -> 6032.543084 | D20: =SUM(D17:D19) -> 3323.599516 | E20: 961.0132245 | F20: 1873.321 | G20: 2407.644748 | H20: 1549.192 | I20: 564.6318104 | J20: 4137.358476 | K20: 7829.004506 | L20: 4811.437627 | M20: 0 | N20: 3145.478314 | O20: 2686.764287 | P20: 257.2570595 | Q20: 2179.549094 | R20: 0 | S20: 831.9818771 | T20: 494.7990904 | U20: 1360.856285 | V20: =SUM(V17:V19) -> 44446.432 | W20: =SUM(W17:W19) -> 0 | X20: 41023.919 | Y20: 3422.513
B21: =CONCATENATE("Δ" & $B$15 & "/" & $B$15-1) -> Δ2019/2018 | C21: =(C20/C6-1)*100 -> 0.813959326 | D21: =(D20/D6-1)*100 -> 0.5453518237 | E21: -2.220446049e-14 | F21: 1.045286206 | G21: 0.03980576203 | H21: 4.545442276 | I21: -9.992007222e-14 | J21: 3.330669074e-13 | K21: 0.5058281211 | L21: 0.01985247789 | N21: =(N20/N6-1)*100 -> -0.5555082534 | O21: 0.1237215923 | P21: -1.998401444e-13 | Q21: 0.006882631107 | S21: =(S20/S6-1)*100 -> 0 | T21: 4.440892099e-14 | U21: 0.1172694938 | V21: 0.4117914278 | X21: =(X20/X6-1)*100 -> 0.2334346111 | Y21: 2.600143055
B22: Posiciones 400 kV | C22: 199 | D22: 101 | E22: 49 | G22: 184 | I22: 15 | J22: 116 | K22: 251 | L22: 150 | N22: 107 | O22: 76 | P22: 8 | Q22: 106 | S22: 71 | T22: 28 | U22: 80 | V22: =SUM(C22:U22)+W22 -> 1541 | X22: =V22-Y22 -> 1541 | Y22: =F22+H22 -> 0
B23: Posiciones 220 kV | C23: 465 | D23: 223 | E23: 45 | F23: 124 | G23: 324 | H23: 72 | I23: 50 | J23: 141 | K23: 254 | L23: 616 | N23: 91 | O23: 233 | P23: 30 | Q23: 530 | S23: 48 | T23: 50 | U23: 151 | V23: =SUM(C23:U23)+W23 -> 3454 | W23: 7 | X23: =V23-Y23 -> 3258 | Y23: =F23+H23 -> 196
B24: Posiciones <220 kV | F24: 567 | H24: 510 | L24: 3 | N24: 0 | O24: 1 | V24: 1081 | X24: =V24-Y24 -> 4 | Y24: =F24+H24 -> 1077
B25: Total posiciones | C25: =SUM(C22:C24) -> 664 | D25: 324 | E25: 94 | F25: =SUM(F22:F24) -> 691 | G25: =SUM(G22:G24) -> 508 | H25: 582 | I25: 65 | J25: 257 | K25: 505 | L25: 769 | M25: 0 | N25: 198 | O25: 310 | P25: 38 | Q25: 636 | R25: 0 | S25: 119 | T25: 78 | U25: 231 | V25: =SUM(V22:V24) -> 6076 | W25: 7 | X25: =SUM(X22:X24) -> 4803 | Y25: 1273
B26: =CONCATENATE("Δ" & $B$15 & "/" & $B$15-1) -> Δ2019/2018 | C26: =(C25/C11-1)*100 -> 2.786377709 | D26: =(D25/D11-1)*100 -> 2.53164557 | E26: 0 | F26: 5.175038052 | G26: 5.613305613 | H26: 3.191489362 | I26: 0 | J26: 2.390438247 | K26: 3.06122449 | L26: 0.6544502618 | N26: =(N25/N11-1)*100 -> 3.125 | O26: 5.442176871 | P26: 0 | Q26: 0.9523809524 | S26: =(S25/S11-1)*100 -> 1.709401709 | T26: 0 | U26: 0 | V26: 2.635135135 | W26: 0 | X26: 2.234993614 | Y26: 4.173486088
B27: Transformadores | C27: 15020 | D27: 5056 | E27: 1300 | F27: 3838 | G27: 8950 | H27: 3470 | I27: 2100 | J27: 1200 | K27: 6131 | L27: 11500 | N27: 2800 | O27: 5700 | P27: 600 | Q27: 11100 | S27: 3450 | T27: 1600 | U27: 5100 | V27: =SUM(C27:U27)+W27 -> 89815 | W27: 900 | X27: =V27-Y27 -> 82507 | Y27: =F27+H27 -> 7308
B28: =CONCATENATE("Δ" & $B$15 & "/" & $B$15-1) -> Δ2019/2018 | C28: =(C27/C13-1)*100 -> 4.160887656 | D28: =(D27/D13-1)*100 -> 0 | E28: 0 | F28: 10.82876119 | G28: 0 | H28: 4.833836858 | I28: 0 | J28: 0 | K28: 0 | L28: 0 | N28: =(N27/N13-1)*100 -> 0 | O28: 0 | P28: 0 | Q28: -10.26677445 | S28: =(S27/S13-1)*100 -> 0 | T28: 0 | U28: 2 | V28: -0.03895381191 | W28: 0 | X28: -0.6861104758 | Y28: 7.899010778
B29: 2020
B30: CCAA | C30: Andalucía | D30: Aragón | E30: Asturias | F30: Baleares | G30: C. Valenciana | H30: Canarias | I30: Cantabria | J30: Castilla-La Mancha | K30: Castilla y León | L30: Cataluña | M30: Ceuta | N30: Extremadura | O30: Galicia | P30: La Rioja | Q30: Madrid | R30: Melilla | S30: Murcia | T30: Navarra | U30: País Vasco | V30: TOTAL | W30: MÓVILES | X30: PENINSULAR | Y30: NO PENINSULAR
B31: km líneas 400 kV | C31: 2774.14959 | D31: 1447.051699 | E31: 539.0682043 | F31: 0 | G31: 1073.171488 | I31: 240.5107043 | J31: 2612.814496 | K31: 4511.660432 | L31: 2237.079333 | N31: 2291.070447 | O31: 1346.726287 | P31: 114.9490595 | Q31: 992.6117087 | S31: 708.1121371 | T31: 175.9700702 | U31: 698.9563434 | V31: =SUM(C31:U31) -> 21763.902 | X31: =V31-Y31 -> 21763.902 | Y31: =F31+H31 -> 0
B32: km líneas 220 kV | C32: 3258.615495 | D32: 1885.140817 | E32: 432.2110202 | F32: 447.664 | G32: 1334.47326 | H32: 239.145 | I32: 324.1211061 | J32: 1528.303979 | K32: 3317.344074 | L32: 2546.688294 | N32: 859.3478674 | O32: 1332.484 | P32: 142.308 | Q32: 1186.993385 | S32: 123.86974 | T32: 318.8290202 | U32: 661.8999412 | V32: =SUM(C32:U32) -> 19939.439 | X32: =V32-Y32 -> 19252.63 | Y32: =F32+H32 -> 686.809
B33: km líneas <220 kV | F33: 1481.116 | H33: 1321.842 | L33: 39.44 | N33: 5.04 | O33: 12.3 | V33: =SUM(C33:U33) -> 2859.738 | X33: 56.78 | Y33: 2802.958
B34: Total km líneas | C34: =SUM(C31:C33) -> 6032.765084 | D34: =SUM(D31:D33) -> 3332.192516 | E34: 971.2792245 | F34: 1928.78 | G34: 2407.644748 | H34: 1560.987 | I34: 564.6318104 | J34: 4141.118476 | K34: 7829.004506 | L34: 4823.207627 | M34: 0 | N34: 3155.458314 | O34: 2691.510287 | P34: 257.2570595 | Q34: 2179.605094 | R34: 0 | S34: 831.9818771 | T34: 494.7990904 | U34: 1360.856285 | V34: =SUM(V31:V33) -> 44563.079 | X34: =SUM(X31:X33) -> 41073.312 | Y34: 3489.767
B35: =CONCATENATE("Δ" & $B$29 & "/" & $B$29-1) -> Δ2020/2019 | C35: 0.2666036915 | D35: 0.5306457033 | E35: 0 | F35: 2.44402976 | G35: 1.090233197 | H35: 8.534318437 | I35: 0 | J35: 0 | K35: 0.3878701014 | L35: 0.105236572 | N35: 0 | O35: 0 | P35: 0 | Q35: 0 | S35: 0 | T35: 0 | U35: 0 | V35: =(V34/V20-1)*100 -> 0.2624440135 | X35: =(X34/X20-1)*100 -> 0.1204004912 | Y35: 1.96504732
B36: Posiciones 400 kV | C36: 194 | D36: 101 | E36: 55 | G36: 181 | I36: 15 | J36: 119 | K36: 247 | L36: 147 | N36: 113 | O36: 75 | P36: 8 | Q36: 109 | S36: 74 | T36: 30 | U36: 84 | V36: =SUM(C36:U36)+W36 -> 1552 | X36: =V36-Y36 -> 1552 | Y36: =F36+H36 -> 0
B37: Posiciones 220 kV | C37: 460 | D37: 222 | E37: 44 | F37: 125 | G37: 323 | H37: 77 | I37: 48 | J37: 142 | K37: 251 | L37: 600 | N37: 88 | O37: 223 | P37: 29 | Q37: 551 | S37: 44 | T37: 50 | U37: 149 | V37: =SUM(C37:U37)+W37 -> 3433 | W37: 7 | X37: =V37-Y37 -> 3231 | Y37: =F37+H37 -> 202
B38: Posiciones <220 kV | F38: 559 | H38: 546 | L38: 3 | N38: 0 | O38: 1 | V38: =SUM(C38:U38)+W38 -> 1109 | X38: =V38-Y38 -> 4 | Y38: =F38+H38 -> 1105
B39: Total posiciones | C39: =SUM(C36:C38) -> 654 | D39: =SUM(D36:D38) -> 323 | E39: 99 | F39: =SUM(F36:F38) -> 684 | G39: =SUM(G36:G38) -> 504 | H39: 623 | I39: 63 | J39: 261 | K39: 498 | L39: 750 | M39: 0 | N39: 201 | O39: 299 | P39: 37 | Q39: 660 | R39: 0 | S39: 118 | T39: 80 | U39: 233 | V39: =SUM(V36:V38) -> 6094 | W39: 7 | X39: =SUM(X36:X38) -> 4787 | Y39: 1307
B40: =CONCATENATE("Δ" & $B$29 & "/" & $B$29-1) -> Δ2020/2019 | C40: =(C39/C25-1)*100 -> -1.506024096 | D40: =(D39/D25-1)*100 -> -0.3086419753 | E40: 5.319148936 | F40: -1.013024602 | G40: -0.7874015748 | H40: 7.04467354 | I40: -3.076923077 | J40: 1.556420233 | K40: -1.386138614 | L40: -2.470741222 | N40: =(N39/N25-1)*100 -> 1.515151515 | O40: -3.548387097 | P40: -2.631578947 | Q40: 3.773584906 | S40: =(S39/S25-1)*100 -> -0.8403361345 | T40: 2.564102564 | U40: 0.8658008658 | V40: 0.2962475313 | W40: 0 | X40: 0 | Y40: 0
B41: Transformadores | C41: 15020 | D41: 5056 | E41: 1300 | F41: 3838 | G41: 8950 | H41: 3630 | I41: 2100 | J41: 1200 | K41: 6131 | L41: 11500 | N41: 2800 | O41: 5700 | P41: 600 | Q41: 11100 | S41: 3450 | T41: 1600 | U41: 5100 | V41: =SUM(C41:U41)+W41 -> 89975 | W41: 900 | X41: =V41-Y41 -> 82507 | Y41: =F41+H41 -> 7468
B42: =CONCATENATE("Δ" & $B$29 & "/" & $B$29-1) -> Δ2020/2019 | C42: =(C41/C27-1)*100 -> 0 | D42: =(D41/D27-1)*100 -> 0 | E42: 0 | F42: 0 | G42: 0 | H42: 4.610951009 | I42: 0 | J42: 0 | K42: 0 | L42: 0 | N42: =(N41/N27-1)*100 -> 0 | O42: 0 | P42: 0 | Q42: 0 | S42: =(S41/S27-1)*100 -> 0 | T42: 0 | U42: 0 | V42: 0.1781439626 | W42: 0 | X42: 0 | Y42: 2.1893815
B43: 2021
B44: CCAA | C44: Andalucía | D44: Aragón | E44: Asturias | F44: Baleares | G44: C. Valenciana | H44: Canarias | I44: Cantabria | J44: Castilla-La Mancha | K44: Castilla y León | L44: Cataluña | M44: Ceuta | N44: Extremadura | O44: Galicia | P44: La Rioja | Q44: Madrid | R44: Melilla | S44: Murcia | T44: Navarra | U44: País Vasco | V44: TOTAL | W44: MÓVILES | X44: PENINSULAR | Y44: NO PENINSULAR
B45: km líneas 400 kV | C45: 2774.14959 | D45: 1448.037699 | E45: 539.0682043 | G45: 1074.437488 | I45: 240.5107043 | J45: 2612.814496 | K45: 4511.660432 | L45: 2237.079333 | N45: 2293.298447 | O45: 1346.726287 | P45: 114.9490595 | Q45: 992.6117087 | S45: 708.1121371 | T45: 175.9700702 | U45: 698.9563434 | V45: =SUM(C45:U45) -> 21768.382 | X45: =V45-Y45 -> 21768.382 | Y45: =F45+H45 -> 0
B46: km líneas 220 kV | C46: 3266.267495 | D46: 1904.367817 | E46: 432.5490202 | F46: 447.664 | G46: 1350.38626 | H46: 240.249 | I46: 324.1211061 | J46: 1528.303979 | K46: 3348.948074 | L46: 2546.688294 | N46: 909.1758674 | O46: 1388.335 | P46: 142.308 | Q46: 1186.993385 | S46: 123.86974 | T46: 318.8290202 | U46: 661.9799412 | V46: =SUM(C46:U46) -> 20121.036 | X46: =V46-Y46 -> 19433.123 | Y46: =F46+H46 -> 687.913
B47: km líneas <220 kV | F47: 1481.116 | G47: 0 | H47: 1337.996 | L47: 39.44 | N47: 8.05 | O47: 12.3 | V47: 2878.902 | X47: 59.79 | Y47: 2819.112
B48: Total km líneas | C48: =SUM(C45:C47) -> 6040.417084 | D48: 3352.405516 | E48: 971.6172245 | F48: 1928.78 | G48: 2424.823748 | H48: 1578.245 | I48: 564.6318104 | J48: 4141.118476 | K48: 7860.608506 | L48: 4823.207627 | M48: 0 | N48: 3210.524314 | O48: 2747.361287 | P48: 257.2570595 | Q48: 2179.605094 | R48: 0 | S48: 831.9818771 | T48: 494.7990904 | U48: 1360.936285 | V48: =SUM(V45:V47) -> 44768.32 | X48: =SUM(X45:X47) -> 41261.295 | Y48: 3507.025
B49: =CONCATENATE("Δ" & $B$43 & "/" & $B$43-1) -> Δ2021/2020 | C49: =(C48/C34-1)*100 -> 0.1268406758 | D49: =(D48/D34-1)*100 -> 0.6065976051 | E49: 0.0347994677 | F49: 0 | G49: 0.7135188865 | H49: 1.105582558 | I49: 0 | J49: 0 | K49: 0.4036783984 | L49: 0 | N49: =(N48/N34-1)*100 -> 1.745103073 | O49: 2.07508031 | P49: 0 | Q49: 0 | S49: =(S48/S34-1)*100 -> 0 | T49: 0 | U49: 0.005878651618 | V49: 0.3352935099 | X49: 0.3386428746 | Y49: 0.2921503343
B50: Posiciones 400 kV | C50: 197 | D50: 108 | E50: 55 | G50: 187 | I50: 15 | J50: 123 | K50: 247 | L50: 147 | N50: 124 | O50: 78 | P50: 8 | Q50: 109 | S50: 76 | T50: 30 | U50: 90 | V50: =SUM(C50:U50)+W50 -> 1594 | X50: =V50-Y50 -> 1594 | Y50: =F50+H50 -> 0
B51: Posiciones 220 kV | C51: 472 | D51: 223 | E51: 44 | F51: 125 | G51: 323 | H51: 83 | I51: 49 | J51: 145 | K51: 252 | L51: 605 | N51: 103 | O51: 235 | P51: 29 | Q51: 551 | S51: 44 | T51: 51 | U51: 149 | V51: =SUM(C51:U51)+W51 -> 3490 | W51: 7 | X51: =V51-Y51 -> 3282 | Y51: =F51+H51 -> 208
B52: Posiciones <220 kV | F52: 568 | H52: 570 | L52: 3 | N52: 2 | O52: 1 | V52: =SUM(C52:U52)+W52 -> 1144 | X52: =V52-Y52 -> 6 | Y52: =F52+H52 -> 1138
B53: Total posiciones | C53: =SUM(C50:C52) -> 669 | D53: =SUM(D50:D52) -> 331 | E53: 99 | F53: 693 | G53: 510 | H53: 653 | I53: 64 | J53: 268 | K53: 499 | L53: 755 | M53: 0 | N53: 229 | O53: 314 | P53: 37 | Q53: 660 | R53: 0 | S53: 120 | T53: 81 | U53: 239 | V53: =SUM(V50:V52) -> 6228 | W53: =SUM(W50:W52) -> 7 | X53: =SUM(X50:X52) -> 4882 | Y53: 1346
B54: =CONCATENATE("Δ" & $B$43 & "/" & $B$43-1) -> Δ2021/2020 | C54: =(C53/C39-1)*100 -> 2.293577982 | D54: =(D53/D39-1)*100 -> 2.476780186 | E54: 0 | F54: 1.315789474 | G54: 1.19047619 | H54: 4.81540931 | I54: 1.587301587 | J54: 2.681992337 | K54: 0.2008032129 | L54: 0.6666666667 | N54: =(N53/N39-1)*100 -> 13.93034826 | O54: 5.016722408 | P54: 0 | Q54: 0 | S54: =(S53/S39-1)*100 -> 1.694915254 | T54: 1.25 | U54: 2.575107296 | V54: 2.198884148 | W54: 0 | X54: 1.984541466 | Y54: 2.98393267
B55: Transformadores | C55: 15020 | D55: 5056 | E55: 1300 | F55: 3838 | G55: 8950 | H55: 3880 | I55: 2100 | J55: 1200 | K55: 6131 | L55: 11500 | N55: 3025 | O55: 5700 | P55: 600 | Q55: 11100 | S55: 3450 | T55: 1600 | U55: 5100 | V55: =SUM(C55:U55)+W55 -> 90450 | W55: 900 | X55: =V55-Y55 -> 82732 | Y55: =F55+H55 -> 7718
B56: =CONCATENATE("Δ" & $B$43 & "/" & $B$43-1) -> Δ2021/2020 | C56: =(C55/C41-1)*100 -> 0 | D56: =(D55/D41-1)*100 -> 0 | E56: 0 | F56: 0 | G56: 0 | H56: 6.887052342 | I56: 0 | J56: 0 | K56: 0 | L56: 0 | N56: =(N55/N41-1)*100 -> 8.035714286 | O56: 0 | P56: 0 | Q56: 0 | S56: =(S55/S41-1)*100 -> 0 | T56: 0 | U56: 0 | V56: 0.5279244235 | W56: 0 | X56: 0.2727041342 | Y56: 3.347616497
B57: 2022
B58: CCAA | C58: Andalucía | D58: Aragón | E58: Asturias | F58: Baleares | G58: C. Valenciana | H58: Canarias | I58: Cantabria | J58: Castilla-La Mancha | K58: Castilla y León | L58: Cataluña | M58: Ceuta | N58: Extremadura | O58: Galicia | P58: La Rioja | Q58: Madrid | R58: Melilla | S58: Murcia | T58: Navarra | U58: País Vasco | V58: TOTAL | W58: MÓVILES | X58: PENINSULAR | Y58: NO PENINSULAR
B59: km líneas 400 kV | C59: 3019.04959 | D59: 1448.037699 | E59: 539.0682043 | G59: 1074.437488 | I59: 240.5107043 | J59: 2612.814496 | K59: 4511.660432 | L59: 2237.079333 | N59: 2293.298447 | O59: 1346.726287 | P59: 114.9490595 | Q59: 992.6117087 | S59: 708.1121371 | T59: 175.9700702 | U59: 698.9563434 | V59: =SUM(C59:U59) -> 22013.282 | X59: =V59-Y59 -> 22013.282 | Y59: =F59+H59 -> 0
B60: km líneas 220 kV | C60: 3268.964495 | D60: 1904.367817 | E60: 432.5490202 | F60: 447.664 | G60: 1360.31226 | H60: 259.529 | I60: 332.2971061 | J60: 1528.303979 | K60: 3349.098074 | L60: 2546.688294 | N60: 909.1758674 | O60: 1388.335 | P60: 142.308 | Q60: 1186.993385 | S60: 123.86974 | T60: 318.8290202 | U60: 661.9799412 | V60: =SUM(C60:U60) -> 20161.265 | X60: =V60-Y60 -> 19454.072 | Y60: =F60+H60 -> 707.193
B61: km líneas <220 kV | F61: 1482.064 | H61: 1349.667 | L61: 39.44 | N61: 8.05 | O61: 12.3 | V61: =SUM(C61:U61) -> 2891.521 | X61: 59.79 | Y61: 2831.731
B62: Total km líneas | C62: =SUM(C59:C61) -> 6288.014084 | D62: 3352.405516 | E62: 971.6172245 | F62: 1929.728 | G62: 2434.749748 | H62: 1609.196 | I62: 572.8078104 | J62: 4141.118476 | K62: 7860.758506 | L62: 4823.207627 | M62: 0 | N62: 3210.524314 | O62: 2747.361287 | P62: 257.2570595 | Q62: 2179.605094 | R62: 0 | S62: 831.9818771 | T62: 494.7990904 | U62: 1360.936285 | V62: 45066.068 | X62: =SUM(X59:X61) -> 41527.144 | Y62: 3538.924
B63: =CONCATENATE("Δ" & $B$57 & "/" & $B$57-1) -> Δ2022/2021 | C63: =(C62/C48-1)*100 -> 4.099005028 | D63: =(D62/D48-1)*100 -> 0 | E63: 0 | F63: 0.04915024005 | G63: 0.4093493396 | H63: 1.961102364 | I63: 1.448023269 | J63: 0 | K63: 0.001908249214 | L63: 0 | N63: =(N62/N48-1)*100 -> 0 | O63: 0 | P63: 0 | Q63: 0 | S63: =(S62/S48-1)*100 -> 0 | T63: 0 | U63: 0 | V63: 0.6650863825 | X63: =(X62/X48-1)*100 -> 0.6443060015 | Y63: 0.9095743543
B64: Posiciones 400 kV | C64: 201 | D64: 121 | E64: 55 | G64: 189 | I64: 15 | J64: 128 | K64: 251 | L64: 147 | N64: 128 | O64: 78 | P64: 8 | Q64: 112 | S64: 78 | T64: 30 | U64: 90 | V64: =SUM(C64:U64)+W64 -> 1631 | X64: =V64-F64-H64-M64-R64 -> 1631 | Y64: =F64+H64+M64+R64 -> 0
B65: Posiciones 220 kV | C65: 474 | D65: 230 | E65: 44 | F65: 125 | G65: 332 | H65: 97 | I65: 52 | J65: 149 | K65: 254 | L65: 606 | N65: 106 | O65: 236 | P65: 29 | Q65: 551 | S65: 44 | T65: 51 | U65: 149 | V65: =SUM(C65:U65)+W65 -> 3536 | W65: 7 | X65: =V65-F65-H65-M65-R65 -> 3314 | Y65: =F65+H65+M65+R65 -> 222
B66: Posiciones <220 kV | F66: 576 | H66: 588 | L66: 3 | N66: 2 | O66: 1 | V66: 1170 | X66: =V66-F66-H66-M66-R66 -> 6 | Y66: =F66+H66+M66+R66 -> 1164
B67: Total posiciones | C67: =SUM(C64:C66) -> 675 | D67: =SUM(D64:D66) -> 351 | E67: 99 | F67: 701 | G67: 521 | H67: 685 | I67: 67 | J67: 277 | K67: 505 | L67: 756 | M67: 0 | N67: 236 | O67: 315 | P67: 37 | Q67: 663 | R67: 0 | S67: 122 | T67: 81 | U67: 239 | V67: =SUM(V64:V66) -> 6337 | W67: =SUM(W64:W66) -> 7 | X67: =SUM(X64:X66) -> 4951 | Y67: 1386
B68: =CONCATENATE("Δ" & $B$57 & "/" & $B$57-1) -> Δ2022/2021 | C68: =(C67/C53-1)*100 -> 0.8968609865 | D68: =(D67/D53-1)*100 -> 6.042296073 | E68: 0 | F68: 1.154401154 | G68: 2.156862745 | H68: 4.900459418 | I68: 4.6875 | J68: 3.358208955 | K68: 1.20240481 | L68: 0.1324503311 | N68: =(N67/N53-1)*100 -> 3.056768559 | O68: 0.3184713376 | P68: 0 | Q68: 0.4545454545 | S68: =(S67/S53-1)*100 -> 1.666666667 | T68: 0 | U68: 0 | V68: 1.750160565 | W68: 0 | X68: 1.413355182 | Y68: 2.971768202
B69: Transformadores | C69: 15020 | D69: 5056 | E69: 1300 | F69: 3838 | G69: 8950 | H69: =3880+125 -> 4005 | I69: 2100 | J69: =1200+600 -> 1800 | K69: 6131 | L69: 11500 | N69: 3025 | O69: 5700 | P69: 600 | Q69: 11100 | S69: 3450 | T69: 1600 | U69: 5100 | V69: =SUM(C69:U69)+W69 -> 91175 | W69: 900 | X69: =V69-F69-H69-M69-R69 -> 83332 | Y69: =F69+H69+M69+R69 -> 7843
B70: =CONCATENATE("Δ" & $B$57 & "/" & $B$57-1) -> Δ2022/2021 | C70: =(C69/C55-1)*100 -> 0 | D70: =(D69/D55-1)*100 -> 0 | E70: 0 | F70: 0 | G70: 0 | H70: 3.221649485 | I70: 0 | J70: 50 | K70: 0 | L70: 0 | N70: =(N69/N55-1)*100 -> 0 | O70: 0 | P70: 0 | Q70: 0 | S70: =(S69/S55-1)*100 -> 0 | T70: 0 | U70: 0 | V70: 0.8015478165 | W70: 0 | X70: 0.7252332834 | Y70: 1.619590568
B71: 2023
B72: CCAA | C72: Andalucía | D72: Aragón | E72: Asturias | F72: Baleares | G72: C. Valenciana | H72: Canarias | I72: Cantabria | J72: Castilla-La Mancha | K72: Castilla y León | L72: Cataluña | M72: Ceuta | N72: Extremadura | O72: Galicia | P72: La Rioja | Q72: Madrid | R72: Melilla | S72: Murcia | T72: Navarra | U72: País Vasco | V72: TOTAL | W72: MÓVILES | X72: PENINSULAR | Y72: NO PENINSULAR
B73: km líneas 400 kV | C73: 3021.04359 | D73: 1448.037699 | E73: 539.0682043 | G73: 1114.437488 | I73: 240.5107043 | J73: 2612.814496 | K73: 4511.660432 | L73: 2237.079333 | N73: 2293.298447 | O73: 1346.726287 | P73: 114.9490595 | Q73: 994.4537087 | S73: 708.1121371 | T73: 175.9700702 | U73: 698.9563434 | V73: =SUM(C73:U73) -> 22057.118 | X73: =V73-Y73 -> 22057.118 | Y73: =F73+H73 -> 0
B74: km líneas 220 kV | C74: 3275.903495 | D74: 1904.367817 | E74: 432.5490202 | F74: 447.664 | G74: 1360.31226 | H74: 266.329 | I74: 332.4041061 | J74: 1528.303979 | K74: 3349.098074 | L74: 2562.954294 | N74: 909.1758674 | O74: 1389.285 | P74: 142.308 | Q74: 1186.993385 | S74: 123.86974 | T74: 318.9290202 | U74: 661.9799412 | V74: =SUM(C74:U74) -> 20192.427 | X74: =V74-Y74 -> 19478.434 | Y74: =F74+H74 -> 713.993
B75: km líneas <220 kV | F75: 1556.801 | H75: 1356.436 | L75: 39.44 | N75: 8.05 | O75: 12.3 | V75: =SUM(C75:U75) -> 2973.027 | X75: 59.79 | Y75: 2913.237
B76: Total km líneas | C76: =SUM(C73:C75) -> 6296.947084 | D76: 3352.405516 | E76: 971.6172245 | F76: 2004.465 | G76: 2474.749748 | H76: 1622.765 | I76: 572.9148104 | J76: 4141.118476 | K76: 7860.758506 | L76: 4839.473627 | M76: 0 | N76: 3210.524314 | O76: 2748.311287 | P76: 257.2570595 | Q76: 2181.447094 | R76: 0 | S76: 831.9818771 | T76: 494.8990904 | U76: 1360.936285 | V76: 45222.572 | X76: =SUM(X73:X75) -> 41595.342 | Y76: =SUM(Y73:Y75) -> 3627.23
B77: =CONCATENATE("Δ" & $B$71 & "/" & $B$71-1) -> Δ2023/2022 | C77: =(C76/C62-1)*100 -> 0.1420639312 | D77: =(D76/D62-1)*100 -> 0 | E77: 0 | F77: 3.872929242 | G77: 1.642879315 | H77: 0.8432161154 | I77: 0.01867991289 | J77: 0 | K77: 0 | L77: 0.3372444493 | N77: 0 | O77: 0.03457863385 | P77: 0 | Q77: 0.08451072192 | S77: 0 | T77: 0.02021022308 | U77: 0 | V77: =(V76/V62-1)*100 -> 0.3472768026 | X77: =(X76/X62-1)*100 -> 0.164225115 | Y77: 2.495278226
B78: Posiciones 400 kV | C78: 220 | D78: 133 | E78: 55 | G78: 200 | I78: 15 | J78: 131 | K78: 257 | L78: 149 | N78: 128 | O78: 80 | P78: 8 | Q78: 118 | S78: 85 | T78: 32 | U78: 90 | V78: =SUM(C78:U78)+W78 -> 1701 | X78: =V78-F78-H78-M78-R78 -> 1701 | Y78: =F78+H78+M78+R78 -> 0
B79: Posiciones 220 kV | C79: 485 | D79: 232 | E79: 44 | F79: 129 | G79: 333 | H79: 97 | I79: 55 | J79: 149 | K79: 259 | L79: 612 | N79: 107 | O79: 242 | P79: 29 | Q79: 557 | R79: 0 | S79: 45 | T79: 55 | U79: 150 | V79: =SUM(C79:U79)+W79 -> 3587 | W79: 7 | X79: =V79-F79-H79-M79-R79 -> 3361 | Y79: =F79+H79+M79+R79 -> 226
B80: Posiciones <220 kV | F80: 588 | H80: 598 | L80: 3 | N80: 2 | O80: 1 | V80: 1192 | X80: =V80-F80-H80-M80-R80 -> 6 | Y80: =F80+H80+M80+R80 -> 1186
B81: Total posiciones | C81: =SUM(C78:C80) -> 705 | D81: =SUM(D78:D80) -> 365 | E81: 99 | F81: 717 | G81: 533 | H81: 695 | I81: 70 | J81: 280 | K81: 516 | L81: 764 | M81: 0 | N81: 237 | O81: 323 | P81: 37 | Q81: 675 | R81: 0 | S81: 130 | T81: 87 | U81: 240 | V81: =SUM(V78:V80) -> 6480 | W81: =SUM(W78:W80) -> 7 | X81: =SUM(X78:X80) -> 5068 | Y81: 1412
B82: =CONCATENATE("Δ" & $B$71 & "/" & $B$71-1) -> Δ2023/2022 | C82: =(C81/C67-1)*100 -> 4.444444444 | D82: =(D81/D67-1)*100 -> 3.988603989 | E82: 0 | F82: 2.282453638 | G82: 2.303262956 | H82: 1.459854015 | I82: 4.47761194 | J82: 1.083032491 | K82: 2.178217822 | L82: 1.058201058 | N82: 0.4237288136 | O82: 2.53968254 | P82: 0 | Q82: 1.809954751 | S82: 6.557377049 | T82: 7.407407407 | U82: 0.4184100418 | V82: =(V81/V67-1)*100 -> 2.256588291 | W82: 0 | X82: 2.363158958 | Y82: 1.875901876
B83: Transformadores | C83: 15020 | D83: 5056 | E83: 1300 | F83: 3838 | G83: 8950 | H83: 4165 | I83: 2100 | J83: 1800 | K83: 6131 | L83: 11500 | N83: 3025 | O83: 5700 | P83: 600 | Q83: 11700 | S83: 3450 | T83: 1600 | U83: 5100 | V83: =SUM(C83:U83)+W83 -> 91935 | W83: 900 | X83: =V83-F83-H83-M83-R83 -> 83932 | Y83: =F83+H83+M83+R83 -> 8003
B84: =CONCATENATE("Δ" & $B$71 & "/" & $B$71-1) -> Δ2023/2022 | C84: =(C83/C69-1)*100 -> 0 | D84: =(D83/D69-1)*100 -> 0 | E84: 0 | F84: 0 | G84: 0 | H84: 3.995006242 | I84: 0 | J84: 0 | K84: 0 | L84: 0 | N84: 0 | O84: 0 | P84: 0 | Q84: 5.405405405 | S84: 0 | T84: 0 | U84: 0 | V84: =(V83/V69-1)*100 -> 0.8335618316 | W84: 0 | X84: 0.7200115202 | Y84: 2.040035701

Sheet EVOLUCION_RdT (hidden)
B2: evolución líneas | C2: Andalucía | D2: Aragón | E2: Asturias | F2: Baleares | G2: C. Valenciana | H2: Canarias | I2: Cantabria | J2: Castilla-La Mancha | K2: Castilla y León | L2: Cataluña | M2: Ceuta | N2: Extremadura | O2: Galicia | P2: La Rioja | Q2: Madrid | R2: Melilla | S2: Murcia | T2: Navarra | U2: País Vasco | V2: TOTAL | W2: MÓVILES | X2: Resto nacional
A3: 2018 | B3: líneas | C3: =datos_RdT!C6 -> 5983.837084 | D3: =datos_RdT!D6 -> 3305.572516 | E3: =datos_RdT!E6 -> 961.0132245 | F3: =datos_RdT!F6 -> 1853.942 | G3: =datos_RdT!G6 -> 2406.686748 | H3: =datos_RdT!H6 -> 1481.836 | I3: =datos_RdT!I6 -> 564.6318104 | J3: =datos_RdT!J6 -> 4137.358476 | K3: =datos_RdT!K6 -> 7789.602506 | L3: =datos_RdT!L6 -> 4810.482627 | N3: =datos_RdT!N6 -> 3163.049314 | O3: =datos_RdT!O6 -> 2683.444287 | P3: =datos_RdT!P6 -> 257.2570595 | Q3: =datos_RdT!Q6 -> 2179.399094 | S3: =datos_RdT!S6 -> 831.9818771 | T3: =datos_RdT!T6 -> 494.7990904 | U3: =datos_RdT!U6 -> 1359.262285 | V3: =SUM(C3:U3) -> 44264.156 | X3: =V3-D3 -> 40958.58348
A4: 2018 | B4: posiciones | C4: =datos_RdT!C11 -> 646 | D4: =datos_RdT!D11 -> 316 | E4: =datos_RdT!E11 -> 94 | F4: =datos_RdT!F11 -> 657 | G4: =datos_RdT!G11 -> 481 | H4: =datos_RdT!H11 -> 564 | I4: =datos_RdT!I11 -> 65 | J4: =datos_RdT!J11 -> 251 | K4: =datos_RdT!K11 -> 490 | L4: =datos_RdT!L11 -> 764 | N4: =datos_RdT!N11 -> 192 | O4: =datos_RdT!O11 -> 294 | P4: =datos_RdT!P11 -> 38 | Q4: =datos_RdT!Q11 -> 630 | S4: =datos_RdT!S11 -> 117 | T4: =datos_RdT!T11 -> 78 | U4: =datos_RdT!U11 -> 231 | V4: =SUM(C4:U4)+W4 -> 5915 | W4: =datos_RdT!W11 -> 7 | X4: =V4-D4 -> 5599
A5: 2018 | B5: transformadores | C5: =datos_RdT!C13 -> 14420 | D5: =datos_RdT!D13 -> 5056 | E5: =datos_RdT!E13 -> 1300 | F5: =datos_RdT!F13 -> 3463 | G5: =datos_RdT!G13 -> 8950 | H5: =datos_RdT!H13 -> 3310 | I5: =datos_RdT!I13 -> 2100 | J5: =datos_RdT!J13 -> 1200 | K5: =datos_RdT!K13 -> 6131 | L5: =datos_RdT!L13 -> 11500 | N5: =datos_RdT!N13 -> 2800 | O5: =datos_RdT!O13 -> 5700 | P5: =datos_RdT!P13 -> 600 | Q5: =datos_RdT!Q13 -> 12370 | S5: =datos_RdT!S13 -> 3450 | T5: =datos_RdT!T13 -> 1600 | U5: =datos_RdT!U13 -> 5000 | V5: =SUM(C5:U5)+W5 -> 89850 | W5: =datos_RdT!W13 -> 900 | X5: =V5-D5 -> 84794
A6: 2018 | B6: líneas | C6: =datos_RdT!C7/100 -> 0.002557731119 | D6: =datos_RdT!D7/100 -> 0 | E6: =datos_RdT!E7/100 -> 0 | F6: =datos_RdT!F7/100 -> 0.02471950604 | G6: =datos_RdT!G7/100 -> 0.01115227228 | H6: =datos_RdT!H7/100 -> 0.09352762201 | I6: =datos_RdT!I7/100 -> 0 | J6: =datos_RdT!J7/100 -> 0 | K6: =datos_RdT!K7/100 -> 0.003927632324 | L6: =datos_RdT!L7/100 -> 0.001035895371 | N6: =datos_RdT!N7/100 -> 0 | O6: =datos_RdT!O7/100 -> 2.220446049e-16 | P6: =datos_RdT!P7/100 -> 0 | Q6: =datos_RdT!Q7/100 -> 0 | S6: =datos_RdT!S7/100 -> 0 | T6: =datos_RdT!T7/100 -> 0 | U6: =datos_RdT!U7/100 -> 0 | V6: =datos_RdT!V7/100 -> 0.003267133699
A7: 2018 | B7: posiciones | C7: =datos_RdT!C12/100 -> 0.0205371248 | D7: =datos_RdT!D12/100 -> 0.006369426752 | E7: =datos_RdT!E12/100 -> 0.01075268817 | F7: =datos_RdT!F12/100 -> 0.001524390244 | G7: =datos_RdT!G12/100 -> 0 | H7: =datos_RdT!H12/100 -> 0.1393939394 | I7: =datos_RdT!I12/100 -> 0 | J7: =datos_RdT!J12/100 -> 0.004 | K7: =datos_RdT!K12/100 -> 0.02941176471 | L7: =datos_RdT!L12/100 -> 0.02826379542 | N7: =datos_RdT!N12/100 -> 0.005235602094 | O7: =datos_RdT!O12/100 -> 0 | P7: =datos_RdT!P12/100 -> 0 | Q7: =datos_RdT!Q12/100 -> 0 | S7: =datos_RdT!S12/100 -> 0 | T7: =datos_RdT!T12/100 -> 0 | U7: =datos_RdT!U12/100 -> 0.004347826087 | V7: =datos_RdT!V12/100 -> 0.01810829817
A8: 2018 | B8: transformadores | C8: =datos_RdT!C14/100 -> 0 | D8: =datos_RdT!D14/100 -> 0.1053782247 | E8: =datos_RdT!E14/100 -> 0 | F8: =datos_RdT!F14/100 -> 0 | G8: =datos_RdT!G14/100 -> 0 | H8: =datos_RdT!H14/100 -> 0.1779359431 | I8: =datos_RdT!I14/100 -> 0 | J8: =datos_RdT!J14/100 -> 0 | K8: =datos_RdT!K14/100 -> 0 | L8: =datos_RdT!L14/100 -> 0.1734693878 | N8: =datos_RdT!N14/100 -> 0 | O8: =datos_RdT!O14/100 -> 0 | P8: =datos_RdT!P14/100 -> 0 | Q8: =datos_RdT!Q14/100 -> 0 | S8: =datos_RdT!S14/100 -> 0 | T8: =datos_RdT!T14/100 -> 0 | U8: =datos_RdT!U14/100 -> 0.04166666667 | V8: =datos_RdT!V14/100 -> 0.0064808814
A9: 2019 | B9: líneas | C9: =datos_RdT!C20 -> 6032.543084 | D9: =datos_RdT!D20 -> 3323.599516 | E9: =datos_RdT!E20 -> 961.0132245 | F9: =datos_RdT!F20 -> 1873.321 | G9: =datos_RdT!G20 -> 2407.644748 | H9: =datos_RdT!H20 -> 1549.192 | I9: =datos_RdT!I20 -> 564.6318104 | J9: =datos_RdT!J20 -> 4137.358476 | K9: =datos_RdT!K20 -> 7829.004506 | L9: =datos_RdT!L20 -> 4811.437627 | N9: =datos_RdT!N20 -> 3145.478314 | O9: =datos_RdT!O20 -> 2686.764287 | P9: =datos_RdT!P20 -> 257.2570595 | Q9: =datos_RdT!Q20 -> 2179.549094 | S9: =datos_RdT!S20 -> 831.9818771 | T9: =datos_RdT!T20 -> 494.7990904 | U9: =datos_RdT!U20 -> 1360.856285 | V9: =SUM(C9:U9) -> 44446.432 | X9: =V9-D9 -> 41122.83248
A10: 2019 | B10: posiciones | C10: =datos_RdT!C25 -> 664 | D10: =datos_RdT!D25 -> 324 | E10: =datos_RdT!E25 -> 94 | F10: =datos_RdT!F25 -> 691 | G10: =datos_RdT!G25 -> 508 | H10: =datos_RdT!H25 -> 582 | I10: =datos_RdT!I25 -> 65 | J10: =datos_RdT!J25 -> 257 | K10: =datos_RdT!K25 -> 505 | L10: =datos_RdT!L25 -> 769 | N10: =datos_RdT!N25 -> 198 | O10: =datos_RdT!O25 -> 310 | P10: =datos_RdT!P25 -> 38 | Q10: =datos_RdT!Q25 -> 636 | S10: =datos_RdT!S25 -> 119 | T10: =datos_RdT!T25 -> 78 | U10: =datos_RdT!U25 -> 231 | V10: =SUM(C10:U10)+W10 -> 6076 | W10: =datos_RdT!W25 -> 7 | X10: =V10-D10 -> 5752
A11: 2019 | B11: transformadores | C11: =datos_RdT!C27 -> 15020 | D11: =datos_RdT!D27 -> 5056 | E11: =datos_RdT!E27 -> 1300 | F11: =datos_RdT!F27 -> 3838 | G11: =datos_RdT!G27 -> 8950 | H11: =datos_RdT!H27 -> 3470 | I11: =datos_RdT!I27 -> 2100 | J11: =datos_RdT!J27 -> 1200 | K11: =datos_RdT!K27 -> 6131 | L11: =datos_RdT!L27 -> 11500 | N11: =datos_RdT!N27 -> 2800 | O11: =datos_RdT!O27 -> 5700 | P11: =datos_RdT!P27 -> 600 | Q11: =datos_RdT!Q27 -> 11100 | S11: =datos_RdT!S27 -> 3450 | T11: =datos_RdT!T27 -> 1600 | U11: =datos_RdT!U27 -> 5100 | V11: =SUM(C11:U11)+W11 -> 89815 | W11: =datos_RdT!W27 -> 900 | X11: =V11-D11 -> 84759
A12: 2019 | B12: líneas | C12: =(C9/C3-1) -> 0.00813959326 | D12: =(D9/D3-1) -> 0.005453518237 | E12: =(E9/E3-1) -> -2.220446049e-16 | F12: =(F9/F3-1) -> 0.01045286206 | G12: 0.0003980576203 | H12: 0.04545442276 | I12: -9.992007222e-16 | J12: 3.330669074e-15 | K12: 0.005058281211 | L12: 0.0001985247789 | N12: -0.005555082534 | O12: 0.001237215923 | P12: -1.998401444e-15 | Q12: 6.882631107e-05 | S12: 0 | T12: 4.440892099e-16 | U12: 0.001172694938 | V12: 0.004117914278
A13: 2019 | B13: posiciones | C13: =(C10/C4-1) -> 0.02786377709 | D13: =(D10/D4-1) -> 0.0253164557 | E13: 0 | F13: 0.05175038052 | G13: 0.05613305613 | H13: 0.03191489362 | I13: 0 | J13: 0.02390438247 | K13: 0.0306122449 | L13: 0.006544502618 | N13: 0.03125 | O13: 0.05442176871 | P13: 0 | Q13: 0.009523809524 | S13: 0.01709401709 | T13: 0 | U13: 0 | V13: 0.02721893491
A14: 2019 | B14: transformadores | C14: =(C11/C5-1) -> 0.04160887656 | D14: =(D11/D5-1) -> 0 | E14: 0 | F14: 0.1082876119 | G14: 0 | H14: 0.04833836858 | I14: 0 | K14: 0 | L14: 0 | N14: 0 | O14: 0 | Q14: -0.1026677445 | S14: 0 | T14: 0 | U14: 0.02 | V14: -0.0003895381191
A15: 2020 | B15: líneas | C15: =datos_RdT!C34 -> 6032.765084 | D15: =datos_RdT!D34 -> 3332.192516 | E15: =datos_RdT!E34 -> 971.2792245 | F15: =datos_RdT!F34 -> 1928.78 | G15: =datos_RdT!G34 -> 2407.644748 | H15: =datos_RdT!H34 -> 1560.987 | I15: =datos_RdT!I34 -> 564.6318104 | J15: =datos_RdT!J34 -> 4141.118476 | K15: =datos_RdT!K34 -> 7829.004506 | L15: =datos_RdT!L34 -> 4823.207627 | N15: =datos_RdT!N34 -> 3155.458314 | O15: =datos_RdT!O34 -> 2691.510287 | P15: =datos_RdT!P34 -> 257.2570595 | Q15: =datos_RdT!Q34 -> 2179.605094 | S15: =datos_RdT!S34 -> 831.9818771 | T15: =datos_RdT!T34 -> 494.7990904 | U15: =datos_RdT!U34 -> 1360.856285 | V15: =SUM(C15:U15) -> 44563.079 | X15: =V15-D15 -> 41230.88648
A16: 2020 | B16: posiciones | C16: =datos_RdT!C39 -> 654 | D16: =datos_RdT!D39 -> 323 | E16: =datos_RdT!E39 -> 99 | F16: =datos_RdT!F39 -> 684 | G16: =datos_RdT!G39 -> 504 | H16: =datos_RdT!H39 -> 623 | I16: =datos_RdT!I39 -> 63 | J16: =datos_RdT!J39 -> 261 | K16: =datos_RdT!K39 -> 498 | L16: =datos_RdT!L39 -> 750 | N16: =datos_RdT!N39 -> 201 | O16: =datos_RdT!O39 -> 299 | P16: =datos_RdT!P39 -> 37 | Q16: =datos_RdT!Q39 -> 660 | S16: =datos_RdT!S39 -> 118 | T16: =datos_RdT!T39 -> 80 | U16: =datos_RdT!U39 -> 233 | V16: =SUM(C16:U16)+W16 -> 6094 | W16: =datos_RdT!W39 -> 7 | X16: =V16-D16 -> 5771
A17: 2020 | B17: transformadores | C17: =datos_RdT!C41 -> 15020 | D17: =datos_RdT!D41 -> 5056 | E17: =datos_RdT!E41 -> 1300 | F17: =datos_RdT!F41 -> 3838 | G17: =datos_RdT!G41 -> 8950 | H17: =datos_RdT!H41 -> 3630 | I17: =datos_RdT!I41 -> 2100 | J17: =datos_RdT!J41 -> 1200 | K17: =datos_RdT!K41 -> 6131 | L17: =datos_RdT!L41 -> 11500 | N17: =datos_RdT!N41 -> 2800 | O17: =datos_RdT!O41 -> 5700 | P17: =datos_RdT!P41 -> 600 | Q17: =datos_RdT!Q41 -> 11100 | S17: =datos_RdT!S41 -> 3450 | T17: =datos_RdT!T41 -> 1600 | U17: =datos_RdT!U41 -> 5100 | V17: =SUM(C17:U17)+W17 -> 89975 | W17: =datos_RdT!W41 -> 900 | X17: =V17-D17 -> 84919
A18: 2020 | B18: líneas | C18: =(C15/C9-1) -> 3.680040024e-05 | D18: =(D15/D9-1) -> 0.002585449889 | E18: 0.01068247527 | F18: 0.0296046433 | G18: 0 | H18: 0.00761364634 | I18: 0 | J18: 0.0009087924148 | K18: 0 | L18: 0.002446254303 | N18: 0.003172808394 | O18: 0.001766437057 | P18: 0 | Q18: 2.569338775e-05 | S18: 0 | T18: 0 | U18: 0 | V18: 0.002624440135
A19: 2020 | B19: posiciones | C19: =(C16/C10-1) -> -0.01506024096 | D19: =(D16/D10-1) -> -0.003086419753 | E19: 0.05319148936 | F19: -0.01013024602 | G19: -0.007874015748 | H19: 0.0704467354 | I19: -0.03076923077 | J19: 0.01556420233 | K19: -0.01386138614 | L19: -0.02470741222 | N19: 0.01515151515 | O19: -0.03548387097 | P19: -0.02631578947 | Q19: 0.03773584906 | S19: -0.008403361345 | T19: 0.02564102564 | U19: 0.008658008658 | V19: 0.002962475313
A20: 2020 | B20: transformadores | C20: =(C17/C11-1) -> 0 | D20: =(D17/D11-1) -> 0 | E20: 0 | F20: 0 | G20: 0 | H20: 0.04610951009 | I20: 0 | J20: =(J17/J11-1) -> 0 | K20: 0 | L20: 0 | N20: 0 | O20: 0 | Q20: 0 | S20: 0 | T20: 0 | U20: 0 | V20: 0.001781439626
A21: 2021 | B21: líneas | C21: =datos_RdT!C48 -> 6040.417084 | D21: =datos_RdT!D48 -> 3352.405516 | E21: =datos_RdT!E48 -> 971.6172245 | F21: =datos_RdT!F48 -> 1928.78 | G21: =datos_RdT!G48 -> 2424.823748 | H21: =datos_RdT!H48 -> 1578.245 | I21: =datos_RdT!I48 -> 564.6318104 | J21: =datos_RdT!J48 -> 4141.118476 | K21: =datos_RdT!K48 -> 7860.608506 | L21: =datos_RdT!L48 -> 4823.207627 | N21: =datos_RdT!N48 -> 3210.524314 | O21: =datos_RdT!O48 -> 2747.361287 | P21: =datos_RdT!P48 -> 257.2570595 | Q21: =datos_RdT!Q48 -> 2179.605094 | S21: =datos_RdT!S48 -> 831.9818771 | T21: =datos_RdT!T48 -> 494.7990904 | U21: =datos_RdT!U48 -> 1360.936285 | V21: =SUM(C21:U21) -> 44768.32 | X21: =V21-D21 -> 41415.91448
A22: 2021 | B22: posiciones | C22: =datos_RdT!C53 -> 669 | D22: =datos_RdT!D53 -> 331 | E22: =datos_RdT!E53 -> 99 | F22: =datos_RdT!F53 -> 693 | G22: =datos_RdT!G53 -> 510 | H22: =datos_RdT!H53 -> 653 | I22: =datos_RdT!I53 -> 64 | J22: =datos_RdT!J53 -> 268 | K22: =datos_RdT!K53 -> 499 | L22: =datos_RdT!L53 -> 755 | N22: =datos_RdT!N53 -> 229 | O22: =datos_RdT!O53 -> 314 | P22: =datos_RdT!P53 -> 37 | Q22: =datos_RdT!Q53 -> 660 | S22: =datos_RdT!S53 -> 120 | T22: =datos_RdT!T53 -> 81 | U22: =datos_RdT!U53 -> 239 | V22: =SUM(C22:U22)+W22 -> 6228 | W22: =datos_RdT!W53 -> 7 | X22: =V22-D22 -> 5897
A23: 2021 | B23: transformadores | C23: =datos_RdT!C55 -> 15020 | D23: =datos_RdT!D55 -> 5056 | E23: =datos_RdT!E55 -> 1300 | F23: =datos_RdT!F55 -> 3838 | G23: =datos_RdT!G55 -> 8950 | H23: =datos_RdT!H55 -> 3880 | I23: =datos_RdT!I55 -> 2100 | J23: =datos_RdT!J55 -> 1200 | K23: =datos_RdT!K55 -> 6131 | L23: =datos_RdT!L55 -> 11500 | N23: =datos_RdT!N55 -> 3025 | O23: =datos_RdT!O55 -> 5700 | P23: =datos_RdT!P55 -> 600 | Q23: =datos_RdT!Q55 -> 11100 | S23: =datos_RdT!S55 -> 3450 | T23: =datos_RdT!T55 -> 1600 | U23: =datos_RdT!U55 -> 5100 | V23: =SUM(C23:U23)+W23 -> 90450 | W23: =datos_RdT!W55 -> 900 | X23: =V23-D23 -> 85394
A24: 2021 | B24: líneas | C24: =(C21/C15-1) -> 0.001268406758 | D24: =(D21/D15-1) -> 0.006065976051 | E24: 0.000347994677 | F24: 0 | G24: 0.007135188865 | H24: 0.01105582558 | I24: 0 | J24: 0 | K24: 0.004036783984 | L24: 0 | N24: 0.01745103073 | O24: 0.0207508031 | P24: 0 | Q24: 0 | S24: 0 | T24: 0 | U24: 5.878651618e-05 | V24: 0.004605628799
A25: 2021 | B25: posiciones | C25: =(C22/C16-1) -> 0.02293577982 | D25: =(D22/D16-1) -> 0.02476780186 | E25: 0 | F25: 0.01315789474 | G25: 0.0119047619 | H25: 0.0481540931 | I25: 0.01587301587 | J25: 0.02681992337 | K25: 0.002008032129 | L25: 0.006666666667 | N25: 0.1393034826 | O25: 0.05016722408 | P25: 0 | Q25: 0 | S25: 0.01694915254 | T25: 0.0125 | U25: 0.02575107296 | V25: 0.02198884148
A26: 2021 | B26: transformadores | C26: =(C23/C17-1) -> 0 | D26: =(D23/D17-1) -> 0 | E26: 0 | F26: 0 | G26: 0 | H26: 0.06887052342 | I26: 0 | J26: 0 | K26: 0 | L26: 0 | N26: 0.08035714286 | O26: 0 | P26: 0 | Q26: 0 | S26: 0 | T26: 0 | U26: 0 | V26: 0.005279244235
A27: 2022 | B27: líneas | C27: =datos_RdT!C62 -> 6288.014084 | D27: =datos_RdT!D62 -> 3352.405516 | E27: =datos_RdT!E62 -> 971.6172245 | F27: =datos_RdT!F62 -> 1929.728 | G27: =datos_RdT!G62 -> 2434.749748 | H27: =datos_RdT!H62 -> 1609.196 | I27: =datos_RdT!I62 -> 572.8078104 | J27: =datos_RdT!J62 -> 4141.118476 | K27: =datos_RdT!K62 -> 7860.758506 | L27: =datos_RdT!L62 -> 4823.207627 | M27: =datos_RdT!M62 -> 0 | N27: =datos_RdT!N62 -> 3210.524314 | O27: =datos_RdT!O62 -> 2747.361287 | P27: =datos_RdT!P62 -> 257.2570595 | Q27: =datos_RdT!Q62 -> 2179.605094 | S27: =datos_RdT!S62 -> 831.9818771 | T27: =datos_RdT!T62 -> 494.7990904 | U27: =datos_RdT!U62 -> 1360.936285 | V27: 45066.068 | X27: =V27-D27 -> 41713.66248
A28: 2022 | B28: posiciones | C28: =datos_RdT!C67 -> 675 | D28: =datos_RdT!D67 -> 351 | E28: =datos_RdT!E67 -> 99 | F28: =datos_RdT!F67 -> 701 | G28: =datos_RdT!G67 -> 521 | H28: =datos_RdT!H67 -> 685 | I28: =datos_RdT!I67 -> 67 | J28: =datos_RdT!J67 -> 277 | K28: =datos_RdT!K67 -> 505 | L28: =datos_RdT!L67 -> 756 | M28: =datos_RdT!M67 -> 0 | N28: =datos_RdT!N67 -> 236 | O28: =datos_RdT!O67 -> 315 | P28: =datos_RdT!P67 -> 37 | Q28: =datos_RdT!Q67 -> 663 | S28: =datos_RdT!S67 -> 122 | T28: =datos_RdT!T67 -> 81 | U28: =datos_RdT!U67 -> 239 | V28: =SUM(C28:U28)+W28 -> 6337 | W28: =datos_RdT!W67 -> 7 | X28: =V28-D28 -> 5986
A29: 2022 | B29: transformadores | C29: =datos_RdT!C69 -> 15020 | D29: =datos_RdT!D69 -> 5056 | E29: =datos_RdT!E69 -> 1300 | F29: =datos_RdT!F69 -> 3838 | G29: =datos_RdT!G69 -> 8950 | H29: =datos_RdT!H69 -> 4005 | I29: =datos_RdT!I69 -> 2100 | J29: =datos_RdT!J69 -> 1800 | K29: =datos_RdT!K69 -> 6131 | L29: =datos_RdT!L69 -> 11500 | M29: =datos_RdT!M69 -> 0 | N29: =datos_RdT!N69 -> 3025 | O29: =datos_RdT!O69 -> 5700 | P29: =datos_RdT!P69 -> 600 | Q29: =datos_RdT!Q69 -> 11100 | S29: =datos_RdT!S69 -> 3450 | T29: =datos_RdT!T69 -> 1600 | U29: =datos_RdT!U69 -> 5100 | V29: =SUM(C29:U29)+W29 -> 91175 | W29: =datos_RdT!W69 -> 900 | X29: =V29-D29 -> 86119
A30: 2022 | B30: líneas | C30: =(C27/C21-1) -> 0.04099005028 | D30: =(D27/D21-1) -> 0 | E30: 0 | F30: 0.0004915024005 | G30: 0.004093493396 | H30: 0.01961102364 | I30: 0.01448023269 | J30: 0 | K30: 1.908249214e-05 | L30: 0 | N30: 0 | O30: 0 | P30: 0 | Q30: 0 | S30: 0 | T30: 0 | U30: 0 | V30: 0.006650863825
A31: 2022 | B31: posiciones | C31: =(C28/C22-1) -> 0.008968609865 | D31: =(D28/D22-1) -> 0.06042296073 | E31: 0 | F31: 0.01154401154 | G31: 0.02156862745 | H31: 0.04900459418 | I31: 0.046875 | J31: 0.03358208955 | K31: 0.0120240481 | L31: 0.001324503311 | N31: 0.03056768559 | O31: 0.003184713376 | P31: 0 | Q31: 0.004545454545 | S31: 0.01666666667 | T31: 0 | U31: 0 | V31: 0.01750160565
A32: 2022 | B32: transformadores | C32: =(C29/C23-1) -> 0 | D32: =(D29/D23-1) -> 0 | E32: 0 | F32: 0 | G32: 0 | H32: 0.03221649485 | I32: 0 | J32: 0.5 | K32: 0 | L32: 0 | N32: 0 | O32: 0 | P32: 0 | Q32: 0 | S32: 0 | T32: 0 | U32: 0 | V32: 0.008015478165
A33: 2023 | B33: líneas | C33: =datos_RdT!C76 -> 6296.947084 | D33: =datos_RdT!D76 -> 3352.405516 | E33: =datos_RdT!E76 -> 971.6172245 | F33: =datos_RdT!F76 -> 2004.465 | G33: =datos_RdT!G76 -> 2474.749748 | H33: =datos_RdT!H76 -> 1622.765 | I33: =datos_RdT!I76 -> 572.9148104 | J33: =datos_RdT!J76 -> 4141.118476 | K33: =datos_RdT!K76 -> 7860.758506 | L33: =datos_RdT!L76 -> 4839.473627 | N33: =datos_RdT!N76 -> 3210.524314 | O33: =datos_RdT!O76 -> 2748.311287 | P33: =datos_RdT!P76 -> 257.2570595 | Q33: =datos_RdT!Q76 -> 2181.447094 | S33: =datos_RdT!S76 -> 831.9818771 | T33: =datos_RdT!T76 -> 494.8990904 | U33: =datos_RdT!U76 -> 1360.936285 | V33: =datos_RdT!V76 -> 45222.572 | X33: =V33-D33 -> 41870.16648
A34: 2023 | B34: posiciones | C34: =datos_RdT!C81 -> 705 | D34: =datos_RdT!D81 -> 365 | E34: =datos_RdT!E81 -> 99 | F34: =datos_RdT!F81 -> 717 | G34: =datos_RdT!G81 -> 533 | H34: =datos_RdT!H81 -> 695 | I34: =datos_RdT!I81 -> 70 | J34: =datos_RdT!J81 -> 280 | K34: =datos_RdT!K81 -> 516 | L34: =datos_RdT!L81 -> 764 | N34: =datos_RdT!N81 -> 237 | O34: =datos_RdT!O81 -> 323 | P34: =datos_RdT!P81 -> 37 | Q34: =datos_RdT!Q81 -> 675 | S34: =datos_RdT!S81 -> 130 | T34: =datos_RdT!T81 -> 87 | U34: =datos_RdT!U81 -> 240 | V34: =datos_RdT!V81 -> 6480 | W34: =datos_RdT!W81 -> 7 | X34: =V34-D34 -> 6115
A35: 2023 | B35: transformadores | C35: =datos_RdT!C83 -> 15020 | D35: =datos_RdT!D83 -> 5056 | E35: =datos_RdT!E83 -> 1300 | F35: =datos_RdT!F83 -> 3838 | G35: =datos_RdT!G83 -> 8950 | H35: =datos_RdT!H83 -> 4165 | I35: =datos_RdT!I83 -> 2100 | J35: =datos_RdT!J83 -> 1800 | K35: =datos_RdT!K83 -> 6131 | L35: =datos_RdT!L83 -> 11500 | N35: =datos_RdT!N83 -> 3025 | O35: =datos_RdT!O83 -> 5700 | P35: =datos_RdT!P83 -> 600 | Q35: =datos_RdT!Q83 -> 11700 | S35: =datos_RdT!S83 -> 3450 | T35: =datos_RdT!T83 -> 1600 | U35: =datos_RdT!U83 -> 5100 | V35: =datos_RdT!V83 -> 91935 | W35: =datos_RdT!W83 -> 900 | X35: =V35-D35 -> 86879
A36: 2023 | B36: líneas | C36: =(C33/C27-1) -> 0.001420639312 | D36: =(D33/D27-1) -> 0 | E36: 0 | F36: 0.03872929242 | G36: 0.01642879315 | H36: 0.008432161154 | I36: 0.0001867991289 | J36: 0 | K36: 0 | L36: 0.003372444493 | N36: 0 | O36: 0.0003457863385 | P36: 0 | Q36: 0.0008451072192 | S36: 0 | T36: 0.0002021022308 | U36: 0 | V36: 0.003472768026
A37: 2023 | B37: posiciones | C37: =(C34/C28-1) -> 0.04444444444 | D37: =(D34/D28-1) -> 0.03988603989 | E37: 0 | F37: 0.02282453638 | G37: 0.02303262956 | H37: 0.01459854015 | I37: 0.0447761194 | J37: 0.01083032491 | K37: 0.02178217822 | L37: 0.01058201058 | N37: 0.004237288136 | O37: 0.0253968254 | P37: 0 | Q37: 0.01809954751 | S37: 0.06557377049 | T37: 0.07407407407 | U37: 0.004184100418 | V37: 0.02256588291
A38: 2023 | B38: transformadores | C38: =(C35/C29-1) -> 0 | D38: =(D35/D29-1) -> 0 | E38: 0 | F38: 0 | G38: 0 | H38: 0.03995006242 | I38: 0 | J38: 0 | K38: 0 | L38: 0 | N38: 0 | O38: 0 | P38: 0 | Q38: 0.05405405405 | S38: 0 | T38: 0 | U38: 0 | V38: 0.008335618316

Sheet Año (hidden)
B2: 2018
B3: 2019
B4: 2020
B5: 2021
B6: 2022
B7: 2023
